fUST/lending_fUST_20250930
["ID","MTS","AMOUNT","RATE_DAILY","PERIOD"]
[388577145,1759245054598,-500.0,0.00020547,2]
[388577146,1759245054607,-500.0,0.00020547,2]
[388577147,1759245054617,-500.0,0.00020547,2]
[388577148,1759245054627,-733.74,0.00020547,2]
[388577149,1759245054635,-1788.96,0.00020547,2]
[388577150,1759245054645,-1345.69,0.00020547,2]
[388577151,1759245054655,-1291.55,0.00020547,2]
[388577152,1759245054664,-500.0,0.00020547,2]
[388577153,1759245054674,-500.0,0.00020547,2]
[388577154,1759245054683,-500.0,0.00020547,2]
[388577155,1759245054693,-1166.68,0.00020547,2]
[388577156,1759245054805,-271.9019182,0.00020547,2]
[388577157,1759245054817,-775.21,0.00020547,2]
[388577158,1759245054826,-1602.97,0.00020547,2]
[388577159,1759245054837,-832.21,0.00020547,2]
[388577160,1759245054846,-500.0,0.00020547,2]
[388577162,1759245054856,-829.71,0.00020547,2]
[388577164,1759245054865,-805.26,0.00020547,2]
[388577165,1759245054874,-856.35,0.00020547,2]
[388577166,1759245054884,-500.0,0.00020547,2]
[388577167,1759245054893,-500.0,0.00020547,2]
[388577169,1759245054902,-500.0,0.00020547,2]
[388577171,1759245054911,-502.24569406,0.00020573,2]
[388577173,1759245054921,-500.82328615,0.00020573,2]
[388577175,1759245054930,-523.36391365,0.00020573,2]
[388577177,1759245054940,-500.0,0.00020573,2]
[388577179,1759245054949,-200.0,0.00020573,2]
[388577181,1759245054958,-501.92602239,0.00020573,2]
[388577182,1759245054968,-500.0,0.00020573,2]
[388577183,1759245054977,-500.0,0.00020573,2]
[388577184,1759245054987,-500.0,0.00020573,2]
[388577186,1759245054996,-500.0,0.00020573,2]
[388577187,1759245055005,-291.00840298,0.00020573,2]
[388577188,1759245055014,-536.24146867,0.00020573,2]
[388577189,1759245055024,-200.0,0.00020573,2]
[388577190,1759245055033,-500.0,0.00020573,2]
[388577191,1759245055042,-500.0,0.00020573,2]
[388577192,1759245055053,-500.0,0.00020573,2]
[388577193,1759245055062,-501.04808863,0.00020573,2]
[388577194,1759245055072,-500.0,0.00020573,2]
[388577195,1759245055081,-500.0,0.00020573,2]
[388577196,1759245055091,-501.7634535,0.00020573,2]
[388577197,1759245055101,-517.3508877,0.00020573,2]
[388577198,1759245055110,-509.9967722,0.00020573,2]
[388577199,1759245055120,-500.0,0.00020573,2]
[388577200,1759245055130,-500.0,0.00020573,2]
[388577201,1759245055140,-500.0,0.00020573,2]
[388577202,1759245055150,-627.09777469,0.00020573,2]
[388577203,1759245055159,-500.0,0.00020573,2]
[388577204,1759245055169,-449.2786952,0.00020573,2]
[388577205,1759245055178,-500.0,0.00020573,2]
[388577206,1759245055188,-500.0,0.00020573,2]
[388577207,1759245055198,-500.0,0.00020573,2]
[388577208,1759245055207,-500.0,0.00020573,2]
[388577209,1759245055217,-500.0,0.00020573,2]
[388577210,1759245055227,-500.0,0.00020573,2]
[388577211,1759245055237,-200.0,0.00020573,2]
[388577212,1759245055247,-200.0,0.00020573,2]
[388577213,1759245055257,-500.0,0.00020573,2]
[388577214,1759245055266,-500.0,0.00020573,2]
[388577215,1759245055276,-200.0,0.00020573,2]
[388577216,1759245055286,-200.0,0.00020573,2]
[388577217,1759245055295,-175.04491748,0.00020573,2]
[388577218,1759245055307,-500.0,0.00020573,2]
[388577219,1759245055316,-150.4,0.00020573,2]
[388577220,1759245055326,-200.0,0.00020573,2]
[388577221,1759245055335,-487.277617,0.00020573,2]
[388577222,1759245055344,-256.68,0.00020573,2]
[388577223,1759245055354,-500.0,0.00020573,2]
[388577224,1759245055363,-500.0,0.00020573,2]
[388577225,1759245055373,-200.0,0.00020573,2]
[388577226,1759245055383,-163.76768888,0.00020573,2]
[388577227,1759245055392,-500.0,0.00020573,2]
[388577228,1759245055401,-500.0,0.00020573,2]
[388577229,1759245055411,-500.0,0.00020573,2]
[388577230,1759245055420,-500.0,0.00020573,2]
[388577231,1759245055430,-176.90904982,0.00020573,2]
[388577232,1759245055439,-500.0,0.00020573,2]
[388577233,1759245055448,-500.0,0.00020573,2]
[388577234,1759245055458,-500.0,0.00020573,2]
[388577235,1759245055468,-500.0,0.00020573,2]
[388577236,1759245055477,-500.0,0.00020573,2]
[388577237,1759245055487,-500.0,0.00020573,2]
[388577238,1759245055496,-509.69014316,0.00020573,2]
[388577239,1759245055506,-431.65916564,0.00020573,2]
[388577240,1759245055515,-500.0,0.00020573,2]
[388577241,1759245055525,-979.0,0.00020761,2]
[388577242,1759245055535,-630.0,0.00020761,2]
[388577243,1759245055544,-2156.0,0.00020761,2]
[388577244,1759245055556,-150.0,0.00020764,2]
[388577245,1759245055565,-150.0,0.00020764,2]
[388577246,1759245055575,-150.0,0.00020764,2]
[388577247,1759245055584,-150.0,0.00020764,2]
[388577248,1759245055594,-500.0,0.0002082,2]
[388577249,1759245055603,-500.0,0.0002082,2]
[388577250,1759245055612,-500.0,0.0002082,2]
[388577251,1759245055622,-500.0,0.0002082,2]
[388577252,1759245055632,-806.91,0.0002082,2]
[388577253,1759245055642,-2165.41,0.0002082,2]
[388577254,1759245055653,-1302.12,0.0002082,2]
[388577255,1759245055663,-506.04,0.0002082,2]
[388577256,1759245055672,-524.03,0.0002082,2]
[388577257,1759245055682,-512.5,0.0002082,2]
[388577258,1759245055691,-500.0,0.0002082,2]
[388577259,1759245055700,-676.76,0.0002082,2]
[388577260,1759245055709,-500.0,0.0002082,2]
[388577261,1759245055720,-638.75,0.0002082,2]
[388577262,1759245055734,-1451.45,0.0002082,2]
[388577263,1759245055744,-500.0,0.0002082,2]
[388577264,1759245055753,-500.0,0.0002082,2]
[388577265,1759245055762,-500.0,0.0002082,2]
[388577266,1759245055772,-1040.15,0.0002082,2]
[388577267,1759245055781,-500.0,0.0002082,2]
[388577268,1759245055791,-847.46,0.0002082,2]
[388577269,1759245055800,-840.66,0.0002082,2]
[388577270,1759245055809,-1156.03,0.0002082,2]
[388577271,1759245055818,-968.54,0.0002082,2]
[388577272,1759245055828,-1518.72,0.0002082,2]
[388577273,1759245055837,-500.0,0.0002082,2]
[388577274,1759245055847,-1453.1,0.0002082,2]
[388577275,1759245055856,-544.93,0.0002082,2]
[388577276,1759245055866,-518.44,0.0002082,2]
[388577277,1759245055875,-1051.04,0.0002082,2]
[388577278,1759245055885,-500.0,0.0002082,2]
[388577279,1759245055894,-2303.03,0.0002082,2]
[388577280,1759245055904,-500.0,0.00020821,2]
[388577281,1759245055913,-811.78194968,0.00020821,2]
[388577282,1759245055923,-500.0,0.00020821,2]
[388577283,1759245055933,-1000.0,0.00020821,2]
[388577284,1759245055942,-584.98919306,0.00020821,2]
[388577285,1759245055951,-511.6728974,0.00020821,2]
[388577286,1759245055960,-500.0,0.00020821,2]
[388577287,1759245055970,-500.0,0.00020821,2]
[388577288,1759245055979,-500.0,0.00020821,2]
[388577289,1759245055989,-500.0,0.00020821,2]
[388577290,1759245055998,-500.0,0.00020821,2]
[388577291,1759245056008,-652.36,0.00020821,2]
[388577292,1759245056017,-731.2,0.00020821,2]
[388577293,1759245056026,-740.62,0.00020821,2]
[388577294,1759245056035,-500.0,0.00020821,2]
[388577295,1759245056044,-500.0,0.00020821,2]
[388577296,1759245056057,-500.0,0.00020821,2]
[388577297,1759245056067,-834.81,0.00020821,2]
[388577298,1759245056077,-500.0,0.00020821,2]
[388577299,1759245056086,-2266.48,0.00020821,2]
[388577300,1759245056095,-521.92941451,0.00020821,2]
[388577301,1759245056105,-500.0,0.00020821,2]
[388577302,1759245056114,-500.0,0.00020821,2]
[388577303,1759245056124,-533.03,0.00020821,2]
[388577304,1759245056133,-546.81852785,0.00020821,2]
[388577305,1759245056143,-500.0,0.00020821,2]
[388577306,1759245056152,-522.16,0.00020821,2]
[388577307,1759245056162,-616.84962225,0.00020821,2]
[388577308,1759245056171,-1168.74,0.00020821,2]
[388577309,1759245056180,-653.75,0.00020821,2]
[388577310,1759245056190,-500.0,0.00020821,2]
[388577311,1759245056199,-500.0,0.00020821,2]
[388577312,1759245056208,-500.0,0.00020821,2]
[388577313,1759245056218,-500.0,0.00020821,2]
[388577314,1759245056227,-500.0,0.00020821,2]
[388577315,1759245056236,-970.84,0.00020821,2]
[388577316,1759245056246,-1580.86,0.00020821,2]
[388577317,1759245056255,-500.0,0.00020821,2]
[388577318,1759245056265,-500.0,0.00020821,2]
[388577319,1759245056274,-500.0,0.00020821,2]
[388577320,1759245056283,-1807.02,0.00020821,2]
[388577321,1759245056293,-654.09,0.00020821,2]
[388577322,1759245056303,-500.0,0.00020821,2]
[388577323,1759245056313,-2511.69,0.00020821,2]
[388577324,1759245056322,-638.85493854,0.00020821,2]
[388577325,1759245056332,-500.0,0.00020821,2]
[388577326,1759245056341,-500.0,0.00020821,2]
[388577327,1759245056351,-567.53,0.00020821,2]
[388577328,1759245056361,-1342.87,0.00020821,2]
[388577329,1759245056370,-2022.65,0.00020821,2]
[388577330,1759245056380,-1527.54,0.00020821,2]
[388577331,1759245056389,-500.0,0.00020821,2]
[388577332,1759245056398,-500.0,0.00020821,2]
[388577333,1759245056408,-529.15,0.00020821,2]
[388577334,1759245056417,-500.0,0.00020821,2]
[388577335,1759245056426,-500.0,0.00020821,2]
[388577336,1759245056436,-615.54,0.00020821,2]
[388577337,1759245056446,-2819.35,0.00020821,2]
[388577338,1759245056455,-500.0,0.00020821,2]
[388577339,1759245056464,-500.0,0.00020821,2]
[388577340,1759245056473,-500.0,0.00020821,2]
[388577341,1759245056482,-500.0,0.00020821,2]
[388577342,1759245056492,-824.81,0.00020821,2]
[388577343,1759245056502,-500.0,0.00020821,2]
[388577344,1759245056512,-320.0,0.00020821,2]
[388577345,1759245056522,-500.0,0.00020821,2]
[388577346,1759245056531,-747.27,0.00020821,2]
[388577347,1759245056541,-500.0,0.00020821,2]
[388577348,1759245056551,-754.71,0.00020821,2]
[388577349,1759245056560,-500.0,0.00020821,2]
[388577350,1759245056569,-670.53,0.00020821,2]
[388577351,1759245056578,-1983.65,0.00020821,2]
[388577352,1759245056588,-803.43,0.00020821,2]
[388577353,1759245056599,-500.0,0.00020821,2]
[388577354,1759245056608,-688.46,0.00020821,2]
[388577355,1759245056617,-538.24,0.00020821,2]
[388577356,1759245056626,-679.98,0.00020821,2]
[388577357,1759245056636,-500.0,0.00020821,2]
[388577358,1759245056645,-589.27,0.00020821,2]
[388577359,1759245056655,-500.0,0.00020821,2]
[388577360,1759245056664,-420.0,0.00020821,2]
[388577361,1759245056673,-535.7,0.00020821,2]
[388577362,1759245056683,-1820.42,0.00020821,2]
[388577363,1759245056692,-2007.42,0.00020821,2]
[388577364,1759245056702,-793.47,0.00020821,2]
[388577365,1759245056711,-2768.25,0.00020821,2]
[388577366,1759245056724,-1506.48,0.00020821,2]
[388577367,1759245056734,-500.0,0.00020821,2]
[388577368,1759245056744,-1157.75,0.00020821,2]
[388577369,1759245056753,-629.43,0.00020821,2]
[388577370,1759245056764,-500.0,0.00020821,2]
[388577371,1759245056773,-1285.01,0.00020821,2]
[388577372,1759245056783,-501.17,0.00020821,2]
[388577373,1759245056791,-500.0,0.00020821,2]
[388577374,1759245056801,-500.0,0.00020821,2]
[388577375,1759245056810,-500.0,0.00020821,2]
[388577376,1759245056819,-500.0,0.00020821,2]
[388577377,1759245056828,-500.0,0.00020821,2]
[388577378,1759245056838,-500.0,0.00020821,2]
[388577379,1759245056847,-733.74,0.00020821,2]
[388577380,1759245056855,-1788.96,0.00020821,2]
[388577381,1759245056864,-1345.69,0.00020821,2]
[388577382,1759245056873,-1291.55,0.00020821,2]
[388577383,1759245056882,-500.0,0.00020821,2]
[388577384,1759245056891,-500.0,0.00020821,2]
[388577385,1759245056981,-500.0,0.00020821,2]
[388577386,1759245057003,-1166.68,0.00020821,2]
[388577387,1759245057012,-1602.97,0.00020821,2]
[388577388,1759245057021,-775.21,0.00020821,2]
[388577389,1759245057031,-832.21,0.00020821,2]
[388577390,1759245057041,-500.0,0.00020821,2]
[388577391,1759245057051,-829.71,0.00020821,2]
[388577392,1759245057061,-805.26,0.00020821,2]
[388577393,1759245057070,-856.35,0.00020821,2]
[388577394,1759245057080,-500.0,0.00020821,2]
[388577395,1759245057090,-500.0,0.00020821,2]
[388577396,1759245057099,-500.0,0.00020821,2]
[388577397,1759245057108,-500.0,0.00020873,2]
[388577398,1759245057117,-500.0,0.00020873,2]
[388577399,1759245057127,-500.0,0.00020873,2]
[388577400,1759245057137,-500.0,0.00020873,2]
[388577401,1759245057147,-419.63155968,0.00020873,2]
[388577402,1759245057156,-500.0,0.00020873,2]
[388577403,1759245057165,-500.0,0.00020873,2]
[388577404,1759245057175,-500.0,0.00020873,2]
[388577405,1759245057184,-500.0,0.00020873,2]
[388577406,1759245057193,-500.0,0.00020873,2]
[388577407,1759245057202,-500.0,0.00020873,2]
[388577408,1759245057211,-500.0,0.00020873,2]
[388577409,1759245057220,-500.0,0.00020873,2]
[388577410,1759245057229,-150.0,0.00021,2]
[388577411,1759245057238,-1500.0,0.00021068,2]
[388577412,1759245057248,-1030.22288247,0.00021068,2]
[388577413,1759245057258,-260.0,0.00021094,2]
[388577414,1759245057268,-500.0,0.00021094,2]
[388577415,1759245057277,-500.0,0.00021094,2]
[388577416,1759245057286,-806.91,0.00021094,2]
[388577417,1759245057295,-2165.41,0.00021094,2]
[388577418,1759245057308,-1302.12,0.00021094,2]
[388577419,1759245057317,-506.04,0.00021094,2]
[388577420,1759245057327,-524.03,0.00021094,2]
[388577421,1759245057336,-512.5,0.00021094,2]
[388577422,1759245057345,-500.0,0.00021094,2]
[388577423,1759245057355,-676.76,0.00021094,2]
[388577424,1759245057364,-500.0,0.00021094,2]
[388577425,1759245057373,-638.75,0.00021094,2]
[388577426,1759245057383,-1451.45,0.00021094,2]
[388577427,1759245057392,-500.0,0.00021094,2]
[388577428,1759245057401,-500.0,0.00021094,2]
[388577429,1759245057411,-378.46842315,0.00021094,2]
[388577430,1759245057420,-1040.15,0.00021094,2]
[388577431,1759245057431,-500.0,0.00021094,2]
[388577432,1759245057440,-840.66,0.00021094,2]
[388577433,1759245057450,-847.46,0.00021094,2]
[388577434,1759245057459,-1156.03,0.00021094,2]
[388577435,1759245057469,-968.54,0.00021094,2]
[388577436,1759245057478,-1518.72,0.00021094,2]
[388577437,1759245057487,-500.0,0.00021094,2]
[388577438,1759245057496,-1453.1,0.00021094,2]
[388577439,1759245057506,-544.93,0.00021094,2]
[388577440,1759245057515,-518.44,0.00021094,2]
[388577441,1759245057524,-1051.04,0.00021094,2]
[388577442,1759245057533,-500.0,0.00021094,2]
[388577443,1759245057542,-2303.03,0.00021094,2]
[388577444,1759245057554,-500.0,0.00021095,2]
[388577445,1759245057564,-500.0,0.00021095,2]
[388577446,1759245057575,-500.0,0.00021095,2]
[388577447,1759245057584,-500.0,0.00021095,2]
[388577448,1759245057594,-500.0,0.00021095,2]
[388577449,1759245057603,-500.0,0.00021095,2]
[388577450,1759245057613,-652.36,0.00021095,2]
[388577451,1759245057623,-731.2,0.00021095,2]
[388577452,1759245057632,-740.62,0.00021095,2]
[388577453,1759245057641,-500.0,0.00021095,2]
[388577454,1759245057651,-500.0,0.00021095,2]
[388577455,1759245057661,-500.0,0.00021095,2]
[388577456,1759245057670,-834.81,0.00021095,2]
[388577457,1759245057680,-500.0,0.00021095,2]
[388577458,1759245057689,-2266.48,0.00021095,2]
[388577459,1759245057698,-500.0,0.00021095,2]
[388577460,1759245057707,-500.0,0.00021095,2]
[388577461,1759245057716,-533.03,0.00021095,2]
[388577462,1759245057730,-579.68299742,0.00021095,2]
[388577463,1759245057739,-522.16,0.00021095,2]
[388577464,1759245057748,-1168.74,0.00021095,2]
[388577465,1759245057758,-653.75,0.00021095,2]
[388577466,1759245057768,-500.0,0.00021095,2]
[388577467,1759245057777,-500.0,0.00021095,2]
[388577468,1759245057786,-500.0,0.00021095,2]
[388577469,1759245057795,-269.38097476,0.00021095,2]
[388577470,1759245057809,-249.73549165,0.00021095,2]
[388577471,1759245057818,-970.84,0.00021095,2]
[388577472,1759245057829,-1580.86,0.00021095,2]
[388577473,1759245057838,-500.0,0.00021095,2]
[388577474,1759245057847,-500.0,0.00021095,2]
[388577475,1759245057857,-500.0,0.00021095,2]
[388577476,1759245057867,-1807.02,0.00021095,2]
[388577477,1759245057876,-654.09,0.00021095,2]
[388577478,1759245057885,-500.0,0.00021095,2]
[388577479,1759245057895,-2511.69,0.00021095,2]
[388577480,1759245057904,-500.0,0.00021095,2]
[388577481,1759245057914,-500.0,0.00021095,2]
[388577482,1759245057923,-567.53,0.00021095,2]
[388577483,1759245057933,-1342.87,0.00021095,2]
[388577484,1759245057942,-2022.65,0.00021095,2]
[388577485,1759245057952,-1527.54,0.00021095,2]
[388577486,1759245057962,-500.0,0.00021095,2]
[388577487,1759245057971,-500.0,0.00021095,2]
[388577488,1759245057981,-529.15,0.00021095,2]
[388577489,1759245057991,-500.0,0.00021095,2]
[388577490,1759245058000,-500.0,0.00021095,2]
[388577491,1759245058009,-615.54,0.00021095,2]
[388577492,1759245058018,-2819.35,0.00021095,2]
[388577493,1759245058027,-500.0,0.00021095,2]
[388577494,1759245058037,-500.0,0.00021095,2]
[388577495,1759245058046,-500.0,0.00021095,2]
[388577496,1759245058059,-500.0,0.00021095,2]
[388577497,1759245058069,-824.81,0.00021095,2]
[388577498,1759245058079,-500.0,0.00021095,2]
[388577499,1759245058088,-500.0,0.00021095,2]
[388577500,1759245058097,-747.27,0.00021095,2]
[388577501,1759245058106,-500.0,0.00021095,2]
[388577502,1759245058116,-754.71,0.00021095,2]
[388577503,1759245058125,-500.0,0.00021095,2]
[388577504,1759245058135,-670.53,0.00021095,2]
[388577505,1759245058145,-1983.65,0.00021095,2]
[388577506,1759245058155,-803.43,0.00021095,2]
[388577507,1759245058165,-500.0,0.00021095,2]
[388577508,1759245058175,-688.46,0.00021095,2]
[388577509,1759245058185,-538.24,0.00021095,2]
[388577510,1759245058194,-679.98,0.00021095,2]
[388577511,1759245058204,-500.0,0.00021095,2]
[388577512,1759245058214,-589.27,0.00021095,2]
[388577513,1759245058224,-500.0,0.00021095,2]
[388577514,1759245058238,-535.7,0.00021095,2]
[388577515,1759245058251,-1820.42,0.00021095,2]
[388577516,1759245058260,-2007.42,0.00021095,2]
[388577517,1759245058270,-793.47,0.00021095,2]
[388577518,1759245058279,-2768.25,0.00021095,2]
[388577519,1759245058289,-1506.48,0.00021095,2]
[388577520,1759245058299,-500.0,0.00021095,2]
[388577521,1759245058312,-1157.75,0.00021095,2]
[388577522,1759245058322,-629.43,0.00021095,2]
[388577523,1759245058331,-500.0,0.00021095,2]
[388577524,1759245058340,-1285.01,0.00021095,2]
[388577525,1759245058349,-501.17,0.00021095,2]
[388577526,1759245058360,-500.0,0.00021095,2]
[388577527,1759245058368,-500.0,0.00021095,2]
[388577528,1759245058378,-500.0,0.00021095,2]
[388577529,1759245058387,-500.0,0.00021095,2]
[388577530,1759245058397,-180.75315054,0.00021095,2]
[388577531,1759245058406,-500.0,0.00021095,2]
[388577532,1759245058415,-733.74,0.00021095,2]
[388577533,1759245058424,-1788.96,0.00021095,2]
[388577534,1759245058433,-1345.69,0.00021095,2]
[388577535,1759245058443,-1291.55,0.00021095,2]
[388577536,1759245058452,-500.0,0.00021095,2]
[388577537,1759245058461,-500.0,0.00021095,2]
[388577538,1759245058471,-500.0,0.00021095,2]
[388577539,1759245058480,-1166.68,0.00021095,2]
[388577540,1759245058489,-1602.97,0.00021095,2]
[388577541,1759245058498,-775.21,0.00021095,2]
[388577542,1759245058508,-832.21,0.00021095,2]
[388577543,1759245058517,-500.0,0.00021095,2]
[388577544,1759245058526,-829.71,0.00021095,2]
[388577545,1759245058536,-805.26,0.00021095,2]
[388577546,1759245058545,-856.35,0.00021095,2]
[388577547,1759245058557,-500.0,0.00021095,2]
[388577548,1759245058567,-500.0,0.00021095,2]
[388577549,1759245058576,-500.0,0.00021095,2]
[388577550,1759245058585,-151.0,0.000211,4]
[388577551,1759245058595,-361.16038322,0.00021118,2]
[388577552,1759245058604,-772.06870307,0.00021121,2]
[388577553,1759245058621,-506.4834272,0.00021121,2]
[388577554,1759245058631,-912.89144615,0.00021121,2]
[388577555,1759245058640,-1097.55111984,0.00021121,2]
[388577556,1759245058649,-1000.0,0.00021121,2]
[388577557,1759245058659,-816.89290031,0.00021121,2]
[388577558,1759245058668,-500.84955038,0.00021121,2]
[388577559,1759245058678,-1102.98117502,0.00021121,2]
[388577560,1759245058687,-1000.0,0.00021121,2]
[388577561,1759245058696,-500.0,0.00021121,2]
[388577562,1759245058706,-1001.12138811,0.00021121,2]
[388577563,1759245058717,-1000.0,0.00021121,2]
[388577564,1759245058730,-500.0,0.00021121,2]
[388577565,1759245058740,-171.27725486,0.00021121,2]
[388577566,1759245058749,-500.0,0.00021121,2]
[388577567,1759245058759,-1000.0,0.00021121,2]
[388577568,1759245058768,-1000.0,0.00021121,2]
[388577569,1759245058777,-503.07494067,0.00021121,2]
[388577570,1759245058787,-1000.0,0.00021121,2]
[388577571,1759245058798,-1001.33069141,0.00021121,2]
[388577572,1759245058810,-1000.0,0.00021121,2]
[388577573,1759245058819,-1000.0,0.00021121,2]
[388577574,1759245058828,-500.0,0.00021121,2]
[388577575,1759245058840,-1000.0,0.00021121,2]
[388577576,1759245058849,-158.78906835,0.00021121,2]
[388577577,1759245058859,-500.0,0.00021121,2]
[388577578,1759245058868,-1000.0,0.00021121,2]
[388577579,1759245058878,-500.0,0.00021121,2]
[388577580,1759245058888,-500.37307646,0.00021121,2]
[388577581,1759245058897,-500.0,0.00021121,2]
[388577582,1759245058906,-500.0,0.00021121,2]
[388577583,1759245058916,-1000.0,0.00021121,2]
[388577584,1759245058925,-500.0,0.00021121,2]
[388577585,1759245058934,-1000.0,0.00021121,2]
[388577586,1759245058944,-502.47491404,0.00021121,2]
[388577587,1759245059044,-420.0,0.0002119,2]
[388577588,1759245059056,-657.72,0.0002126,3]
[388577589,1759245059066,-328.86,0.0002126,3]
[388577590,1759245059075,-400.0,0.00021292,2]
[388577591,1759245059084,-500.0,0.00021368,2]
[388577592,1759245059094,-806.91,0.00021368,2]
[388577593,1759245059103,-2165.41,0.00021368,2]
[388577594,1759245059112,-1302.12,0.00021368,2]
[388577595,1759245059121,-506.04,0.00021368,2]
[388577596,1759245059130,-524.03,0.00021368,2]
[388577597,1759245059140,-512.5,0.00021368,2]
[388577598,1759245059148,-500.0,0.00021368,2]
[388577599,1759245059158,-676.76,0.00021368,2]
[388577600,1759245059167,-500.0,0.00021368,2]
[388577601,1759245059176,-638.75,0.00021368,2]
[388577602,1759245059186,-1451.45,0.00021368,2]
[388577603,1759245059195,-500.0,0.00021368,2]
[388577604,1759245059205,-500.0,0.00021368,2]
[388577605,1759245059214,-1040.15,0.00021368,2]
[388577606,1759245059223,-500.0,0.00021368,2]
[388577607,1759245059232,-840.66,0.00021368,2]
[388577608,1759245059241,-847.46,0.00021368,2]
[388577609,1759245059250,-1156.03,0.00021368,2]
[388577610,1759245059260,-968.54,0.00021368,2]
[388577611,1759245059269,-1518.72,0.00021368,2]
[388577612,1759245059278,-500.0,0.00021368,2]
[388577613,1759245059288,-1453.1,0.00021368,2]
[388577614,1759245059297,-544.93,0.00021368,2]
[388577615,1759245059308,-518.44,0.00021368,2]
[388577616,1759245059318,-1051.04,0.00021368,2]
[388577617,1759245059327,-500.0,0.00021368,2]
[388577618,1759245059336,-2303.03,0.00021368,2]
[388577619,1759245059346,-1500.0,0.00021368,2]
[388577620,1759245059356,-500.0,0.00021369,2]
[388577621,1759245059365,-500.0,0.00021369,2]
[388577622,1759245059374,-500.0,0.00021369,2]
[388577623,1759245059384,-500.0,0.00021369,2]
[388577624,1759245059393,-500.0,0.00021369,2]
[388577625,1759245059402,-500.0,0.00021369,2]
[388577626,1759245059412,-652.36,0.00021369,2]
[388577627,1759245059421,-731.2,0.00021369,2]
[388577628,1759245059431,-740.62,0.00021369,2]
[388577629,1759245059440,-500.0,0.00021369,2]
[388577630,1759245059450,-500.0,0.00021369,2]
[388577631,1759245059461,-500.0,0.00021369,2]
[388577632,1759245059470,-834.81,0.00021369,2]
[388577633,1759245059480,-500.0,0.00021369,2]
[388577634,1759245059490,-2266.48,0.00021369,2]
[388577635,1759245059500,-500.0,0.00021369,2]
[388577636,1759245059509,-500.0,0.00021369,2]
[388577637,1759245059519,-533.03,0.00021369,2]
[388577638,1759245059528,-522.16,0.00021369,2]
[388577639,1759245059537,-1168.74,0.00021369,2]
[388577640,1759245059547,-653.75,0.00021369,2]
[388577641,1759245059559,-500.0,0.00021369,2]
[388577642,1759245059568,-500.0,0.00021369,2]
[388577643,1759245059578,-500.0,0.00021369,2]
[388577644,1759245059587,-970.84,0.00021369,2]
[388577645,1759245059597,-1580.86,0.00021369,2]
[388577646,1759245059607,-500.0,0.00021369,2]
[388577647,1759245059616,-500.0,0.00021369,2]
[388577648,1759245059625,-500.0,0.00021369,2]
[388577649,1759245059635,-1807.02,0.00021369,2]
[388577650,1759245059648,-654.09,0.00021369,2]
[388577651,1759245059656,-500.0,0.00021369,2]
[388577652,1759245059666,-2511.69,0.00021369,2]
[388577653,1759245059675,-500.0,0.00021369,2]
[388577654,1759245059684,-500.0,0.00021369,2]